bitfinex/quotes_BTCUSD_20241022
["timestamp","ask_amount","ask_price","bid_price","bid_amount"]
[1729568134574,0.002654,67366.0,67365.0,0.8290522]
[1729568134790,0.002654,67366.0,67365.0,0.97801135]
[1729568135007,0.001654,67366.0,67365.0,0.98801135]
[1729568135446,0.004654,67366.0,67365.0,0.98401135]
[1729568135702,0.001654,67366.0,67365.0,0.98301135]
[1729568135918,0.001652,67371.0,67367.0,0.1698]
[1729568136136,0.001652,67371.0,67370.0,0.25684424]
[1729568136348,0.001652,67371.0,67370.0,0.64075508]
[1729568136559,0.001652,67371.0,67370.0,0.65021299]
[1729568138206,0.002652,67371.0,67370.0,0.65021299]
[1729568138325,0.001652,67371.0,67370.0,0.65021299]
[1729568138524,0.001652,67371.0,67370.0,0.79917214]
[1729568138817,0.004652,67371.0,67370.0,0.79917214]
[1729568140253,0.004652,67371.0,67370.0,0.65021299]
[1729568156318,0.004652,67371.0,67370.0,0.48091921]
[1729568156524,0.004652,67371.0,67370.0,0.58925257]
[1729568159293,0.004652,67371.0,67370.0,0.63565826]
[1729568161531,0.004652,67371.0,67370.0,0.65865826]
[1729568161768,0.004652,67371.0,67370.0,0.92095077]
[1729568161985,0.004652,67371.0,67370.0,1.03295077]
[1729568162469,0.04429225,67398.0,67379.0,0.005]
[1729568162742,0.04429225,67398.0,67396.0,0.10833336]
[1729568162743,0.148374,67397.0,67396.0,0.10833336]
[1729568163175,0.148374,67397.0,67396.0,0.01220085]
[1729568163614,0.04431606,67401.0,67396.0,0.25729251]
[1729568163831,0.11244216,67406.0,67396.0,0.25729251]
[1729568163832,0.04431606,67404.0,67400.0,0.10833336]
[1729568164085,0.001652,67406.0,67403.0,0.10833336]
[1729568164294,0.001652,67406.0,67404.0,0.14895915]
[1729568164520,0.001652,67406.0,67405.0,0.39795264]
[1729568164722,0.001652,67406.0,67405.0,0.65524515]
[1729568164938,0.001652,67406.0,67405.0,0.55904555]
[1729568165384,0.001652,67406.0,67405.0,0.41068955]
[1729568165838,0.001652,67406.0,67405.0,0.38374559]
[1729568166037,0.001652,67406.0,67405.0,0.38474559]
[1729568166156,0.150006,67406.0,67405.0,0.38474559]
[1729568167236,0.150006,67406.0,67405.0,0.38574559]
[1729568167580,0.001652,67406.0,67405.0,0.38574559]
[1729568169514,0.001652,67406.0,67405.0,0.53410159]
[1729568169730,0.001652,67406.0,67405.0,0.61267629]
[1729568169916,0.001652,67406.0,67405.0,0.46432029]
[1729568170333,0.001652,67406.0,67405.0,0.61267629]
[1729568171801,0.001652,67406.0,67405.0,0.38574559]
[1729568176670,0.001652,67406.0,67405.0,0.16309291]
[1729568184079,0.001652,67406.0,67405.0,0.16209291]
[1729568184557,0.006652,67406.0,67405.0,0.16209291]
[1729568184999,0.001652,67406.0,67405.0,0.16109291]
[1729568185428,0.006652,67406.0,67405.0,0.16209291]
[1729568186103,0.006652,67406.0,67405.0,0.16309291]
[1729568186786,0.0224827,67406.0,67405.0,0.01413376]
[1729568187081,0.26333936,67406.0,67405.0,0.002]
[1729568187319,0.26333936,67406.0,67405.0,0.03095545]
[1729568187556,0.16707076,67406.0,67405.0,0.03095545]
[1729568187789,0.16707076,67406.0,67405.0,0.02995545]
[1729568187790,0.16207076,67406.0,67405.0,0.02995545]
[1729568188027,0.16207076,67406.0,67405.0,0.01613671]
[1729568188507,0.16207076,67406.0,67405.0,0.01113671]
[1729568189395,0.16307076,67406.0,67405.0,0.01713671]
[1729568189863,0.45878376,67406.0,67405.0,0.01113777]
[1729568190078,0.471719,67406.0,67405.0,0.002]
[1729568190301,0.48378519,67406.0,67405.0,0.01313777]
[1729568190529,0.471719,67406.0,67405.0,0.002]
[1729568191658,0.48378527,67406.0,67405.0,0.002]
[1729568191891,0.48378527,67406.0,67405.0,0.01313789]
[1729568196466,0.471719,67406.0,67405.0,0.01313789]
[1729568196680,0.471719,67406.0,67405.0,0.002]
[1729568197797,0.48378537,67406.0,67405.0,0.01313579]
[1729568198213,0.52810601,67406.0,67405.0,0.01313579]
[1729568198941,0.48378537,67406.0,67405.0,0.01313579]
[1729568199165,0.52810601,67406.0,67405.0,0.01313579]
[1729568200220,0.48378537,67406.0,67405.0,0.01313579]
[1729568201170,0.55029836,67406.0,67405.0,0.01313579]
[1729568201519,0.55029836,67406.0,67405.0,0.002]
[1729568201734,0.53823199,67406.0,67405.0,0.01313572]
[1729568201950,0.53823199,67406.0,67405.0,0.002]
[1729568202403,0.471719,67406.0,67405.0,0.002]
[1729568202867,0.471719,67406.0,67405.0,0.01313569]
[1729568202868,0.48378529,67406.0,67405.0,0.01313569]
[1729568203093,0.471719,67406.0,67405.0,0.002]
[1729568203322,0.64756943,67406.0,67405.0,0.01313569]
[1729568204225,0.7363075,67406.0,67405.0,0.01313569]
[1729568204441,0.64756943,67406.0,67405.0,0.01313569]
[1729568204647,0.73634157,67406.0,67405.0,0.01313569]
[1729568205287,0.75849202,67406.0,67405.0,0.01313569]
[1729568205713,0.7587118,67406.0,67405.0,0.01313569]
[1729568207274,0.63563425,67406.0,67405.0,0.002]
[1729568207509,0.471719,67406.0,67405.0,0.002]
[1729568208327,0.48378524,67406.0,67405.0,0.002]
[1729568208547,0.64783382,67406.0,67405.0,0.002]
[1729568208772,0.64783382,67406.0,67405.0,0.01313578]
[1729568209854,0.64783384,67406.0,67405.0,0.01313589]
[1729568213648,0.64783384,67406.0,67405.0,0.01313606]
[1729568214183,0.64783384,67406.0,67405.0,0.01313608]
[1729568215808,0.64785906,67406.0,67405.0,0.01313608]
[1729568220762,0.76119242,67406.0,67405.0,0.01313608]
[1729568221005,0.76119242,67406.0,67398.0,0.22265268]
[1729568221006,0.14837,67399.0,67398.0,0.22265268]
[1729568221253,0.32451006,67399.0,67398.0,0.22265268]
[1729568221461,0.32451006,67399.0,67398.0,0.23420688]
[1729568221675,0.32451006,67399.0,67398.0,0.22265268]
[1729568222145,0.33551006,67399.0,67398.0,0.22365268]
[1729568222587,0.32451006,67399.0,67398.0,0.22265268]
[1729568223017,0.33551006,67399.0,67398.0,0.22365268]
[1729568224197,0.33549734,67399.0,67398.0,0.22365268]
[1729568224419,0.34949841,67399.0,67398.0,0.22365268]
[1729568224638,0.34949841,67399.0,67398.0,0.001]
[1729568224857,0.148383,67393.0,67391.0,0.01780447]
[1729568225087,0.148372,67398.0,67397.0,0.22265268]
[1729568225325,0.148385,67392.0,67391.0,0.01780447]
[1729568225562,0.148385,67392.0,67389.0,0.01780447]
[1729568225563,0.148387,67391.0,67389.0,0.01780447]
[1729568225811,0.148387,67391.0,67390.0,0.24045715]
[1729568226046,0.148387,67391.0,67390.0,0.22265268]
[1729568226288,0.21956986,67391.0,67390.0,0.24045715]
[1729568226538,0.23986265,67391.0,67386.0,0.24045715]
[1729568226777,0.23986265,67391.0,67386.0,0.22265268]
[1729568226778,0.148396,67387.0,67386.0,0.22265268]
[1729568226993,0.31707579,67387.0,67386.0,0.22265268]
[1729568227222,0.44330647,67387.0,67386.0,0.22265268]
[1729568227480,0.16867979,67387.0,67386.0,0.54301183]
[1729568227723,0.06662787,67387.0,67386.0,0.54301183]
[1729568228006,0.06662787,67388.0,67386.0,0.54301183]
[1729568228198,0.06662787,67387.0,67386.0,0.54301183]
[1729568228477,0.04442321,67387.0,67386.0,0.54301183]
[1729568228729,0.05842321,67387.0,67386.0,0.54301183]
[1729568228954,0.058418,67387.0,67386.0,0.54301183]
[1729568230091,0.206814,67387.0,67386.0,0.54301183]
[1729568230539,0.148407,67382.0,67381.0,0.09380447]
[1729568230759,0.148407,67382.0,67381.0,0.076]
[1729568230971,0.19281609,67382.0,67381.0,0.076]
[1729568231402,0.148407,67382.0,67381.0,0.076]
[1729568231614,0.19280813,67382.0,67381.0,0.076]
[1729568232096,0.20580813,67382.0,67381.0,0.076]
[1729568232519,0.161407,67382.0,67381.0,0.076]
[1729568232739,0.20580286,67382.0,67381.0,0.076]
[1729568233617,0.173407,67382.0,67381.0,0.076]
[1729568234521,0.025,67382.0,67381.0,0.22495915]
[1729568234753,0.025,67382.0,67381.0,0.2360679]
[1729568235012,0.025,67382.0,67381.0,0.23606317]
[1729568236581,0.025,67382.0,67381.0,0.22495915]
[1729568238913,0.025,67382.0,67381.0,0.23665448]
[1729568242917,0.025,67382.0,67381.0,0.24775732]
[1729568246388,0.025,67382.0,67381.0,0.24858986]
[1729568248432,0.025,67382.0,67381.0,0.24849119]
[1729568255451,0.025,67382.0,67381.0,0.2662678]
[1729568255672,0.025,67382.0,67381.0,0.24849119]
[1729568255875,0.025,67382.0,67381.0,0.2662678]
[1729568256099,0.025,67382.0,67381.0,0.24849119]
[1729568256305,0.025,67382.0,67381.0,0.2662678]
[1729568256509,0.02507433,67382.0,67381.0,0.2662678]
[1729568257585,0.02507433,67382.0,67381.0,0.24849119]
[1729568257793,0.02507433,67382.0,67381.0,0.26632349]
[1729568258212,0.02507433,67382.0,67381.0,0.26632344]
[1729568259286,0.02971642,67382.0,67381.0,0.26632344]
[1729568259958,0.02507433,67382.0,67381.0,0.26632344]
[1729568260381,0.02971642,67382.0,67381.0,0.26632344]
[1729568260622,0.02507433,67382.0,67381.0,0.26632344]
[1729568260820,0.02672633,67382.0,67381.0,0.26632344]
[1729568261039,0.02672633,67382.0,67381.0,0.23738081]
[1729568261250,0.02672633,67382.0,67381.0,0.26633138]
[1729568261679,0.02672633,67382.0,67381.0,0.4199349]
[1729568261896,0.02672633,67382.0,67381.0,0.50814038]
[1729568262321,0.04439523,67389.0,67381.0,0.50869053]
[1729568262562,0.06659284,67391.0,67381.0,0.50869053]
[1729568262563,0.04439523,67391.0,67389.0,0.1708]
[1729568262779,0.06659284,67393.0,67389.0,0.1708]
[1729568262780,0.04439523,67393.0,67391.0,0.296775]
[1729568262993,0.08879046,67396.0,67393.0,0.148382]
[1729568262994,0.04439523,67396.0,67393.0,0.148382]
[1729568263218,0.04439523,67396.0,67392.0,0.39457644]
[1729568263219,0.04439523,67396.0,67395.0,0.18573336]
[1729568263432,0.21960994,67396.0,67395.0,0.22635915]
[1729568263680,0.21966756,67396.0,67395.0,0.24919146]
[1729568264108,0.21502646,67396.0,67395.0,0.24919146]
[1729568264342,0.31707375,67396.0,67395.0,0.24919146]
[1729568264564,0.15301723,67396.0,67395.0,0.24919146]
[1729568264796,0.2196768,67396.0,67395.0,0.24919146]
[1729568265025,0.22703557,67396.0,67395.0,0.25019146]
[1729568265449,0.32445762,67396.0,67395.0,0.25019146]
[1729568265693,0.34008129,67396.0,67395.0,0.25119146]
[1729568265924,0.171376,67396.0,67395.0,0.25119146]
[1729568266393,0.33543997,67396.0,67395.0,0.25119146]
[1729568266621,0.23803926,67396.0,67395.0,0.25119146]
[1729568267060,0.171376,67396.0,67395.0,0.25119146]
[1729568267267,0.23803949,67396.0,67395.0,0.25119146]
[1729568267503,0.171376,67396.0,67395.0,0.25119146]
[1729568268619,0.23803147,67396.0,67395.0,0.25119146]
[1729568269085,0.23803147,67396.0,67395.0,0.25117107]
[1729568269748,0.171376,67396.0,67395.0,0.25117107]
[1729568270009,0.23802946,67396.0,67395.0,0.25117107]
[1729568272741,0.23968146,67396.0,67395.0,0.25117107]
[1729568273238,0.23967076,67396.0,67395.0,0.25117107]
[1729568274245,0.23967076,67396.0,67395.0,0.24005663]
[1729568275101,0.173028,67396.0,67395.0,0.24005663]
[1729568275245,0.23967076,67396.0,67395.0,0.24005663]
[1729568275708,0.173028,67396.0,67395.0,0.24005663]
[1729568276709,0.23967076,67396.0,67395.0,0.16265663]
[1729568277879,0.173028,67396.0,67395.0,0.16265663]
[1729568278104,0.33698554,67396.0,67395.0,0.16265663]
[1729568278566,0.42584256,67396.0,67395.0,0.16265663]
[1729568278781,0.33698554,67396.0,67395.0,0.16265663]
[1729568279002,0.173028,67396.0,67395.0,0.16265663]
[1729568281255,0.26652644,67396.0,67395.0,0.16265663]
[1729568281524,0.43045912,67396.0,67395.0,0.16265663]
[1729568282441,0.4258177,67396.0,67395.0,0.16265663]
[1729568282683,0.43045912,67396.0,67395.0,0.16265663]
[1729568283589,0.34162705,67396.0,67395.0,0.16265663]
[1729568286393,0.34162706,67396.0,67395.0,0.16265663]
[1729568288534,0.45266715,67396.0,67395.0,0.16265663]
[1729568290088,0.34162706,67396.0,67395.0,0.16265663]
[1729568290298,0.43048842,67396.0,67395.0,0.16265663]
[1729568290523,0.34162698,67396.0,67395.0,0.16265663]
[1729568290747,0.17766935,67396.0,67395.0,0.16265663]
[1729568293354,0.02929335,67396.0,67395.0,0.61077754]
[1729568293580,0.024652,67396.0,67395.0,0.61077754]
[1729568293799,0.024652,67396.0,67395.0,0.59296799]
[1729568294018,0.024652,67396.0,67395.0,0.61077716]
[1729568294691,0.024652,67396.0,67395.0,0.65710717]
[1729568294905,0.024652,67396.0,67395.0,0.79350522]
[1729568295566,0.024652,67396.0,67395.0,0.74717521]
[1729568295832,0.012652,67396.0,67395.0,0.74617521]
[1729568296063,0.001652,67396.0,67395.0,0.74517521]
[1729568296286,0.001652,67396.0,67395.0,0.79150505]
[1729568296511,0.001652,67396.0,67395.0,0.74517521]
[1729568296740,0.001652,67396.0,67395.0,0.60877716]
[1729568296968,0.001652,67396.0,67395.0,0.74011052]
[1729568297187,0.001652,67396.0,67395.0,0.8014374]
[1729568298760,0.001652,67396.0,67395.0,0.8034374]
[1729568299671,0.001652,67396.0,67395.0,0.8054374]
[1729568299881,0.001652,67396.0,67395.0,0.95439655]
[1729568300677,0.001652,67396.0,67395.0,0.95239655]
[1729568300884,0.001652,67396.0,67395.0,0.95439655]
[1729568303011,0.001652,67396.0,67395.0,0.95639655]
[1729568303223,0.001652,67396.0,67395.0,0.95439655]
[1729568303729,0.001652,67396.0,67395.0,0.01569748]
[1729568303730,0.150028,67396.0,67395.0,0.01569748]
[1729568304183,0.31845232,67396.0,67395.0,0.004]
[1729568304402,0.31845232,67396.0,67387.0,0.22265268]
[1729568304403,0.148394,67388.0,67387.0,0.22265268]
[1729568304618,0.21493737,67388.0,67387.0,0.2392143]
[1729568304832,0.15303547,67388.0,67387.0,0.22265268]
[1729568305276,0.1530361,67388.0,67387.0,0.22265268]
[1729568305493,0.21957975,67388.0,67387.0,0.22365268]
[1729568305702,0.159394,67388.0,67387.0,0.22365268]
[1729568306591,0.159394,67388.0,67387.0,0.002]
[1729568306592,0.173394,67388.0,67387.0,0.002]
[1729568307656,0.23993549,67388.0,67387.0,0.002]
[1729568310557,0.173394,67388.0,67387.0,0.002]
[1729568313299,0.42469226,67388.0,67387.0,0.002]
[1729568313536,0.62832045,67388.0,67387.0,0.002]
[1729568313817,0.63832045,67388.0,67387.0,0.002]
[1729568314470,0.79672,67388.0,67387.0,0.001]
[1729568314684,0.253405,67383.0,67382.0,0.000826]
[1729568314894,0.59120281,67383.0,67382.0,0.000826]
[1729568315580,0.67986231,67383.0,67382.0,0.000826]
[1729568316015,0.68086231,67383.0,67382.0,0.014826]
[1729568316232,0.42844699,67383.0,67382.0,0.014826]
[1729568316449,0.68073711,67383.0,67382.0,0.014826]
[1729568316666,0.5920806,67383.0,67382.0,0.014826]
[1729568317392,0.5920806,67383.0,67340.0,0.31249483]
[1729568317393,0.153429,67372.0,67354.0,0.0782]
[1729568317618,0.47111068,67372.0,67371.0,0.01756101]
[1729568317840,0.75124712,67372.0,67371.0,0.000826]
[1729568318068,0.66266086,67372.0,67371.0,0.000826]
[1729568318552,0.85220785,67372.0,67371.0,0.000826]
[1729568319006,0.85120785,67372.0,67371.0,0.000826]
[1729568319278,0.85320785,67372.0,67371.0,0.000826]
[1729568319533,0.32284155,67366.0,67365.0,0.22059099]
[1729568321100,0.154442,67366.0,67365.0,0.22059099]
[1729568321323,0.153442,67366.0,67365.0,0.22059099]
[1729568321814,0.154442,67366.0,67365.0,0.22059099]
[1729568322735,0.155442,67366.0,67365.0,0.22059099]
[1729568323188,0.154442,67366.0,67365.0,0.22059099]
[1729568323407,0.155442,67366.0,67365.0,0.22059099]
[1729568323876,0.154442,67366.0,67365.0,0.22059099]
[1729568324376,0.155442,67366.0,67365.0,0.22059099]
[1729568324605,0.150442,67366.0,67365.0,0.22059099]
[1729568325075,0.148458,67359.0,67352.0,0.148472]
[1729568325513,0.148458,67359.0,67358.0,0.21793931]
[1729568326383,0.162458,67359.0,67358.0,0.01815321]
[1729568327269,0.176458,67359.0,67358.0,0.01815321]
[1729568327701,0.176458,67359.0,67358.0,0.000827]
[1729568331862,0.176458,67359.0,67358.0,0.09755321]
[1729568332064,0.176458,67359.0,67358.0,0.080227]
[1729568332266,0.176458,67359.0,67358.0,0.09755321]
[1729568340678,0.17627942,67359.0,67358.0,0.09755321]
[1729568343340,0.18092322,67359.0,67358.0,0.10867019]
[1729568344709,0.18092322,67359.0,67358.0,0.09755321]
[1729568344931,0.18092322,67359.0,67358.0,0.10867355]
[1729568348201,0.18092322,67359.0,67358.0,0.12650206]
[1729568348420,0.18092335,67359.0,67358.0,0.10867355]
[1729568349575,0.24711637,67359.0,67358.0,0.10867355]
[1729568351478,0.18092335,67359.0,67358.0,0.10867355]
[1729568352323,0.18092336,67359.0,67358.0,0.10869578]
[1729568352540,0.43300889,67359.0,67358.0,0.10869578]
[1729568352755,0.43300889,67359.0,67358.0,0.09136957]
[1729568353166,0.43300889,67359.0,67358.0,0.01196957]
[1729568353395,0.34475153,67359.0,67358.0,0.01196957]
[1729568353605,0.45507323,67359.0,67358.0,0.01196957]
[1729568353806,0.45507323,67359.0,67353.0,0.0821]
[1729568353807,0.148469,67354.0,67353.0,0.0821]
[1729568354009,0.21970518,67354.0,67353.0,0.09947067]
[1729568354225,0.15311294,67354.0,67353.0,0.09947067]
[1729568354435,0.2197067,67354.0,67353.0,0.0821]
[1729568354661,0.21972139,67354.0,67353.0,0.0821]
[1729568354875,0.23372077,67354.0,67353.0,0.0821]
[1729568355302,0.24772077,67354.0,67353.0,0.0821]
[1729568355510,0.34503161,67354.0,67353.0,0.0821]
[1729568355977,0.34503185,67354.0,67353.0,0.0821]
[1729568356433,0.43384229,67354.0,67353.0,0.0821]
[1729568356650,0.34514373,67354.0,67353.0,0.0821]
[1729568356886,0.26992362,67354.0,67353.0,0.01737067]
[1729568357095,0.43395057,67354.0,67353.0,0.01737067]
[1729568357314,0.148484,67347.0,67346.0,0.0827]
[1729568357562,0.148484,67347.0,67346.0,0.24902982]
[1729568358439,0.00464418,67347.0,67346.0,0.24902982]
[1729568359078,0.01564418,67347.0,67346.0,0.24902982]
[1729568359282,0.011,67347.0,67346.0,0.24902982]
[1729568360112,0.024,67347.0,67346.0,0.24902982]
[1729568360337,0.45427995,67347.0,67346.0,0.01737067]
[1729568360547,0.57399708,67347.0,67346.0,0.01737067]
[1729568360779,0.1535,67340.0,67339.0,0.00084]
[1729568360984,0.43076452,67340.0,67339.0,0.00084]
[1729568361208,0.32235393,67340.0,67339.0,0.01536063]
[1729568361416,0.32235393,67340.0,67339.0,0.00084]
[1729568361417,0.56414048,67340.0,67339.0,0.00084]
[1729568361625,0.45572989,67340.0,67339.0,0.00084]
[1729568361868,0.45072989,67340.0,67339.0,0.00084]
[1729568362082,0.31735393,67340.0,67339.0,0.00084]
[1729568363420,0.31270973,67340.0,67339.0,0.00084]
[1729568363651,0.31735531,67340.0,67339.0,0.00084]
[1729568363866,0.33135531,67340.0,67339.0,0.00084]
[1729568364070,0.34535531,67340.0,67339.0,0.00084]
[1729568364485,0.31735531,67340.0,67339.0,0.00084]
[1729568364688,0.42842983,67340.0,67339.0,0.00084]
[1729568364941,0.33135531,67340.0,67339.0,0.00084]
[1729568365156,0.34535531,67340.0,67339.0,0.00084]
[1729568365364,0.33135531,67340.0,67339.0,0.00084]
[1729568365566,0.16714558,67340.0,67339.0,0.00084]
[1729568366240,0.23375481,67340.0,67339.0,0.00084]
[1729568366891,0.24775481,67340.0,67339.0,0.00084]
[1729568367304,0.24310923,67340.0,67339.0,0.00084]
[1729568367544,0.1765,67340.0,67339.0,0.00084]
[1729568367768,0.18114543,67340.0,67339.0,0.00084]
[1729568368391,0.1765,67340.0,67339.0,0.00084]
[1729568369351,0.22088161,67340.0,67339.0,0.00084]
[1729568371220,0.1765,67340.0,67339.0,0.00084]
[1729568381283,0.1811454,67340.0,67339.0,0.00084]
[1729568381490,0.1765,67340.0,67339.0,0.00084]
[1729568381695,0.1765,67340.0,67339.0,0.01569076]
[1729568381909,0.1765,67340.0,67339.0,0.00084]
[1729568382138,0.1765,67340.0,67339.0,0.01569076]
[1729568383226,0.1765,67340.0,67339.0,0.01569374]
[1729568383444,0.18114531,67340.0,67339.0,0.01569374]
[1729568387008,0.18114538,67340.0,67339.0,0.00084]
[1729568388113,0.1765,67340.0,67339.0,0.00084]
[1729568388329,0.18114538,67340.0,67339.0,0.00084]
[1729568390486,0.18857799,67340.0,67339.0,0.00084]
[1729568391756,0.47166204,67340.0,67339.0,0.00084]
[1729568391985,0.34140846,67340.0,67339.0,0.00084]
[1729568392201,0.23292441,67340.0,67339.0,0.00084]
[1729568392629,0.21892441,67340.0,67339.0,0.00084]
[1729568393072,0.20592441,67340.0,67339.0,0.00084]
[1729568393310,0.17557799,67340.0,67339.0,0.00084]
[1729568393529,0.24109762,67340.0,67339.0,0.00084]
[1729568394428,0.24113147,67340.0,67339.0,0.00084]
[1729568394888,0.25513147,67340.0,67339.0,0.00084]
[1729568395097,0.18857799,67340.0,67339.0,0.00084]
[1729568395300,0.35236414,67340.0,67339.0,0.00084]
[1729568395525,0.44111484,67340.0,67339.0,0.00084]
[1729568395769,0.44111467,67340.0,67339.0,0.00084]
[1729568396231,0.35236397,67340.0,67339.0,0.00084]
[1729568396447,0.4411258,67340.0,67339.0,0.00084]
[1729568397308,0.35236397,67340.0,67339.0,0.00084]
[1729568398458,0.46328644,67340.0,67339.0,0.00084]
[1729568398905,0.46340348,67340.0,67339.0,0.00084]
[1729568399128,0.35236426,67340.0,67339.0,0.00084]
[1729568399336,0.35256917,67340.0,67339.0,0.00084]
[1729568402943,0.35266192,67340.0,67339.0,0.00084]
[1729568404722,0.48601193,67340.0,67339.0,0.00084]
[1729568404971,0.33866192,67340.0,67339.0,0.00084]
[1729568405192,0.47201193,67340.0,67339.0,0.00084]
[1729568405407,0.47401193,67340.0,67339.0,0.00084]
[1729568405902,0.47201193,67340.0,67339.0,0.00084]
[1729568406122,0.47232475,67340.0,67339.0,0.00084]
[1729568406325,0.33883449,67340.0,67339.0,0.00084]
[1729568406587,0.34183449,67340.0,67339.0,0.00084]
[1729568406799,0.33883449,67340.0,67339.0,0.00084]
[1729568407453,0.35283449,67340.0,67339.0,0.00084]
[1729568412768,0.34075559,67340.0,67339.0,0.00084]
[1729568412981,0.35283444,67340.0,67339.0,0.00084]
[1729568413222,0.35283444,67340.0,67339.0,0.09924]
[1729568413903,0.35283444,67340.0,67339.0,0.11421511]
[1729568414503,0.35283444,67340.0,67339.0,0.09924]
[1729568415829,0.35283444,67340.0,67339.0,0.11421511]
[1729568418063,0.35283444,67340.0,67339.0,0.19571511]
[1729568418277,0.35283444,67340.0,67339.0,0.18074]
[1729568418714,0.35283444,67340.0,67339.0,0.19568615]
[1729568420461,0.35283329,67340.0,67339.0,0.19568615]
[1729568423814,0.34075559,67340.0,67339.0,0.19568615]
[1729568424038,0.35283325,67340.0,67339.0,0.19568615]
[1729568427705,0.34552043,67340.0,67339.0,0.19568615]
[1729568431401,0.34087519,67340.0,67339.0,0.19568615]
[1729568431613,0.34552039,67340.0,67339.0,0.19568615]
[1729568433563,0.1811452,67340.0,67339.0,0.19568615]
[1729568433987,0.34549333,67340.0,67339.0,0.19568615]
[1729568434631,0.1811452,67340.0,67339.0,0.19568615]
[1729568439157,0.1765,67340.0,67339.0,0.19568615]
[1729568439383,0.18114521,67340.0,67339.0,0.19568615]
[1729568440486,0.18114521,67340.0,67339.0,0.18074]
[1729568440954,0.18114521,67340.0,67339.0,0.19278336]
[1729568441154,0.028,67340.0,67339.0,0.60986788]
[1729568441824,0.014,67340.0,67339.0,0.50138383]
[1729568442261,0.01,67340.0,67339.0,0.50138383]
[1729568442467,0.019,67340.0,67339.0,0.50138383]
[1729568442690,0.019,67340.0,67339.0,0.50137737]
[1729568442905,0.019,67340.0,67339.0,0.60986142]
[1729568443548,0.009,67340.0,67339.0,0.60986142]
[1729568443752,0.016,67340.0,67339.0,0.60986142]
[1729568446579,0.016,67340.0,67339.0,0.60985775]
[1729568448393,0.016,67340.0,67339.0,0.59872856]
[1729568448600,0.016,67340.0,67339.0,0.60985741]
[1729568449653,0.016,67340.0,67339.0,0.60985665]
[1729568449844,0.016,67340.0,67339.0,0.62098474]
[1729568450192,0.016,67340.0,67339.0,0.60985665]
[1729568451018,0.04450276,67342.0,67339.0,0.60985665]
[1729568451225,0.298574,67358.0,67352.0,0.148473]
[1729568451226,0.001652,67358.0,67352.0,0.148473]
[1729568451445,0.001652,67358.0,67357.0,0.148462]
[1729568451647,0.001652,67358.0,67357.0,0.59183329]
[1729568451879,0.001652,67358.0,67357.0,0.73343104]
[1729568454832,0.001652,67358.0,67357.0,0.72530295]
[1729568455039,0.001652,67358.0,67357.0,0.73639416]
[1729568455970,0.001652,67358.0,67357.0,0.73939416]
[1729568456177,0.001652,67358.0,67357.0,0.73639416]
[1729568456386,0.001652,67358.0,67357.0,0.73339416]
[1729568456577,0.001652,67358.0,67357.0,0.73639416]
[1729568457012,0.001652,67358.0,67357.0,0.73939416]
[1729568457220,0.001652,67358.0,67357.0,0.73639416]
[1729568457427,0.001652,67358.0,67357.0,0.60667833]
[1729568457642,0.001652,67358.0,67357.0,0.60967833]
[1729568458075,0.001652,67358.0,67357.0,0.60667833]
[1729568458519,0.001652,67358.0,67357.0,0.60867833]
[1729568458741,0.001652,67358.0,67357.0,0.59758712]
[1729568458922,0.001652,67358.0,67357.0,0.73958672]
[1729568459234,0.001652,67358.0,67357.0,0.73658672]
[1729568459457,0.001652,67358.0,67357.0,0.72550419]
[1729568459791,0.001652,67358.0,67357.0,0.73658495]
[1729568460663,0.001652,67358.0,67357.0,0.74158495]
[1729568461473,0.001652,67358.0,67357.0,0.74215193]
[1729568461685,0.001652,67358.0,67357.0,1.44215193]
[1729568462696,0.001652,67358.0,67357.0,1.45215193]
[1729568463299,0.001652,67358.0,67357.0,1.44107117]
[1729568463521,0.001652,67358.0,67357.0,1.45213889]
[1729568463732,0.001652,67358.0,67357.0,1.60109804]
[1729568464769,0.001652,67359.0,67358.0,0.18646]
[1729568464991,0.29679,67388.0,67358.0,0.18646]
[1729568464992,0.29679,67388.0,67364.0,0.153447]
[1729568465197,0.6244,67386.0,67364.0,0.71837425]
[1729568465402,0.148402,67385.0,67364.0,0.72943798]
[1729568465598,0.476,67386.0,67364.0,0.89008016]
[1729568465820,0.148401,67385.0,67364.0,1.59008016]
[1729568466033,0.007652,67365.0,67364.0,1.59008016]
[1729568466261,0.148401,67385.0,67378.0,0.148416]
[1729568466468,0.445189,67387.0,67382.0,0.10848405]
[1729568466667,0.29679,67388.0,67383.0,0.02574432]
[1729568466880,0.29679,67388.0,67383.0,0.03742735]
[1729568467110,0.148403,67384.0,67383.0,0.03742735]
[1729568467345,0.148403,67384.0,67383.0,0.01168303]
[1729568468231,0.148403,67384.0,67383.0,0.01128453]
[1729568468695,0.148403,67384.0,67383.0,0.01228453]
[1729568469112,0.148403,67384.0,67383.0,0.01328453]
[1729568469542,0.148403,67384.0,67383.0,0.01228453]
[1729568469751,0.148403,67384.0,67383.0,0.01128453]
[1729568469953,0.162403,67384.0,67383.0,0.01228453]
[1729568470379,0.176403,67384.0,67383.0,0.01328453]
[1729568474368,0.028,67384.0,67383.0,0.01328453]
[1729568474671,0.176403,67384.0,67383.0,0.002]
[1729568475341,0.178055,67384.0,67383.0,0.002]
[1729568476723,0.029652,67384.0,67383.0,0.002]
[1729568476924,0.029652,67384.0,67383.0,0.01357071]
[1729568477166,0.178055,67384.0,67383.0,0.002]
[1729568480290,0.178055,67384.0,67383.0,0.01357357]
[1729568480725,0.178055,67384.0,67383.0,0.002]
[1729568481889,0.178055,67384.0,67383.0,0.01357357]
[1729568483578,0.178055,67384.0,67383.0,0.002]
[1729568484232,0.178055,67384.0,67383.0,0.01357357]
[1729568484469,0.029652,67384.0,67383.0,0.01357357]
[1729568484703,0.029652,67384.0,67383.0,0.06294052]
[1729568484929,0.029652,67384.0,67383.0,0.36030467]
[1729568486052,0.015652,67384.0,67383.0,0.35930467]
[1729568486314,0.001652,67384.0,67383.0,0.30893772]
[1729568486538,0.005652,67384.0,67383.0,0.30893772]
[1729568486764,0.009652,67384.0,67383.0,0.30893772]
[1729568487209,0.009652,67384.0,67383.0,0.53929687]
[1729568487934,0.009652,67384.0,67383.0,0.48353772]
[1729568488165,0.009652,67384.0,67383.0,0.59202177]
[1729568488409,0.009652,67384.0,67383.0,0.62002177]
[1729568488635,0.001652,67395.0,67394.0,0.43296505]
[1729568488883,0.001652,67395.0,67394.0,0.5819242]